fUST/lending_fUST_20241127
["ID","MTS","AMOUNT","RATE_DAILY","PERIOD"]
[343501110,1732689475869,977.504222,0.00021814,2]
[343501111,1732689511405,100000.0,0.00031061,29]
[343501112,1732689523090,160.840847,0.00013973,2]
[343501113,1732689643025,172.709065,0.00022001,2]
[343501126,1732690052093,-166.543688,0.00022087,2]
[343501127,1732690052115,-908.52046105,0.00022468,2]
[343501138,1732690222268,160.737114,0.00013973,2]
[343501185,1732690232494,-707.77393895,0.00022468,2]
[343501186,1732690232504,-977.504222,0.00022499,2]
[343501187,1732690232513,-164.879866,0.00022568,2]
[343501188,1732690232523,-977.504222,0.00023184,2]
[343501189,1732690232532,-158.60033425,0.00023573,2]
[343501190,1732690232541,-312.39,0.0002359,3]
[343501193,1732690232550,-156.19,0.0002359,3]
[343501196,1732690232559,-468.61,0.0002359,3]
[343501199,1732690232569,-300.0,0.00023598,2]
[343501200,1732690232578,-300.0,0.00023598,2]
[343501201,1732690232587,-500.0,0.00023599,2]
[343501202,1732690232597,-25800.25036124,0.00023599,2]
[343501203,1732690232694,-16751.74963876,0.00023599,2]
[343501204,1732690232703,-1892.25036124,0.000236,2]
[343501205,1732690232715,-9331.29502725,0.000236,2]
[343501236,1732690240482,-500.94417117,0.00023573,2]
[343501237,1732690240491,-609.64629379,0.00023599,2]
[343501238,1732690240500,-3882.20856858,0.000236,2]
[343501260,1732690244684,-156.19,0.0002359,3]
[343501261,1732690244694,-11813.73204609,0.000236,2]
[343501262,1732690245423,-195080.51399684,0.000236,2]
[343501263,1732690245433,-153.0,0.000236,2]
[343501264,1732690245443,-153.0,0.00023636,2]
[343501265,1732690245452,-153.0,0.00023636,2]
[343501266,1732690245461,-153.0,0.00023636,2]
[343501267,1732690245470,-153.0,0.00023636,2]
[343501268,1732690245479,-153.0,0.00023636,2]
[343501269,1732690245489,-153.0,0.00023636,2]
[343501270,1732690245498,-153.0,0.00023636,2]
[343501271,1732690245508,-153.0,0.00023636,2]
[343501272,1732690245518,-153.0,0.00023636,2]
[343501273,1732690245527,-153.0,0.00023636,2]
[343501274,1732690245537,-153.0,0.00023636,2]
[343501275,1732690245546,-670.59735516,0.000239,2]
[343501276,1732690245556,-500.87534817,0.00023973,2]
[343501277,1732690245566,-510.19432561,0.00023973,2]
[343501278,1732690245576,-160.09582971,0.00023973,2]
[343501279,1732690245585,-500.8209716,0.00023973,2]
[343501280,1732690245594,-165.68560384,0.00023999,2]
[343501281,1732690245604,-254728.5462125,0.00024,4]
[343501282,1732690245615,-6602.62346973,0.00024,4]
[343501293,1732690246443,-7592.43244851,0.00024,4]
[343501294,1732690246454,-150.0,0.00024,2]
[343501295,1732690246464,-2500.0,0.00024,4]
[343501296,1732690246474,-333.2815945,0.00024235,2]
[343501297,1732690246487,-195.45569,0.00024658,2]
[343501298,1732690246496,-153.0,0.00024681,2]
[343501299,1732690246505,-153.0,0.00024681,2]
[343501300,1732690246515,-153.0,0.00024681,2]
[343501301,1732690246525,-153.0,0.00024681,2]
[343501303,1732690246536,-216.6354854,0.00024732,2]
[343501304,1732690246546,-458.3284193,0.00024732,2]
[343501305,1732690246556,-171.9579254,0.00024732,2]
[343501306,1732690246565,-311.4330643,0.00024732,2]
[343501307,1732690246576,-304.898822,0.00024732,2]
[343501308,1732690246585,-212.8417378,0.00024732,2]
[343501309,1732690246595,-304.898822,0.00024732,2]
[343501310,1732690246604,-212.8417378,0.00024732,2]
[343501311,1732690246613,-212.8417378,0.00024732,2]
[343501312,1732690246622,-304.898822,0.00024732,2]
[343501313,1732690246632,-304.898822,0.00024732,2]
[343501314,1732690246641,-212.8417378,0.00024732,2]
[343501315,1732690246652,-212.8417378,0.00024732,2]
[343501316,1732690246667,-304.898822,0.00024732,2]
[343501317,1732690246676,-670.59735512,0.00024749,2]
[343501318,1732690246686,-312.38,0.0002496,3]
[343501319,1732690246696,-10918.34954333,0.00025,30]
[343501321,1732690328623,250.0,0.00022001,2]
[343501336,1732690989249,160.642026,0.00013973,2]
[343501362,1732691438721,-251.302716,0.00022477,2]
[343501363,1732691438732,-488.75211,0.00022479,2]
[343501364,1732691438742,-488.75211,0.00023164,2]
[343501365,1732691438752,-174.81170766,0.00023373,2]
[343501366,1732691438761,-174.81170766,0.00023386,2]
[343501367,1732691438856,-174.81170766,0.00023399,2]
[343501368,1732691438868,-300.0,0.00023472,2]
[343501369,1732691438878,-300.0,0.00023472,2]
[343501370,1732691438887,-500.0,0.00023473,2]
[343501371,1732691438896,-187.96646987,0.00023473,2]
[343501372,1732691438906,-500.0,0.00023473,2]
[343501373,1732691438917,-500.0,0.00023473,2]
[343501374,1732691438926,-270.84,0.0002349,3]
[343501375,1732691438935,-812.53,0.0002349,3]
[343501376,1732691438945,-5000.0,0.00023498,2]
[343501377,1732691438955,-500.0,0.00023499,2]
[343501378,1732691438964,-500.0,0.00023499,2]
[343501379,1732691438973,-500.0,0.00023499,2]
[343501380,1732691438983,-395.15513234,0.00023499,2]
[343501381,1732691438992,-5000.0,0.00023499,2]
[343501382,1732691439002,-5000.0,0.00023499,2]
[343501383,1732691439011,-5000.0,0.00023499,2]
[343501384,1732691439020,-5000.0,0.00023499,2]
[343501385,1732691439029,-2055.93661064,0.00023499,2]
[343501386,1732691439039,-468.62492912,0.000235,2]
[343501387,1732691439048,-222000.0,0.000235,2]
[343501388,1732691439058,-488.75211,0.00023849,2]
[343501389,1732691439067,-152.0,0.00023948,2]
[343501390,1732691439076,-1000.0,0.00024021,2]
[343501391,1732691439086,-153.0,0.00024041,2]
[343501392,1732691439096,-153.0,0.00024141,2]
[343501393,1732691439106,-311.16407973,0.00024174,2]
[343501394,1732691439115,-212.8417378,0.00024178,2]
[343501395,1732691439124,-10478.33148364,0.00024187,2]
[343501396,1732691439134,-172.4813867,0.00024278,2]
[343501397,1732691439143,-212.8417378,0.00024278,2]
[343501398,1732691439152,-10478.33148364,0.00024521,2]
[343501399,1732691439163,-151.0,0.000247,10]
[343501400,1732691439172,-416.57472383,0.00024748,2]
[343501401,1732691439181,-150.52969377,0.00024748,2]
[343501402,1732691439190,-151.0,0.000248,10]
[343501403,1732691439199,-325.0,0.0002486,3]
[343501404,1732691439208,-541.68,0.0002486,3]
[343501405,1732691439218,-4747.86581615,0.000249,2]
[343501406,1732691439227,-500.0,0.00024973,2]
[343501407,1732691439236,-500.0,0.00024973,2]
[343501408,1732691439246,-500.0,0.00024973,2]
[343501409,1732691439255,-321.44600648,0.00024973,2]
[343501410,1732691439264,-500.0,0.00024999,2]
[343501411,1732691439273,-367.49273932,0.00024999,2]
[343501412,1732691439283,-192.20770058,0.00024999,2]
[343501413,1732691439292,-301.18574105,0.00024999,2]
[343501414,1732691439302,-565.29390064,0.00024999,2]
[343501415,1732691439311,-272.87918392,0.00024999,2]
[343501416,1732691439321,-54413.98904627,0.00025,30]
[343501417,1732691439330,-500.0,0.00025,2]
[343501418,1732691439339,-18518.62689303,0.00025,2]
[343501419,1732691439348,-779.312891,0.00025,7]
[343501420,1732691439357,-779.312891,0.00025,7]
[343501421,1732691439366,-151.0,0.00025,7]
[343501422,1732691439375,-2542951.3,0.00025,5]
[343501423,1732691439385,-500.0,0.00025,2]
[343501424,1732691439394,-302.72757545,0.00025,2]
[343501425,1732691439403,-500.0,0.00025022,2]
[343501426,1732691439414,-160.642026,0.00025156,2]
[343501427,1732691439423,-302.72757545,0.0002525,2]
[343501428,1732691439432,-285.895,0.00025453,10]
[343501429,1732691439441,-420.0,0.00025467,2]
[343501430,1732691439450,-250.0,0.0002548,2]
[343501431,1732691439460,-264.51,0.0002548,2]
[343501432,1732691439469,-302.72757545,0.000255,2]
[343501433,1732691439478,-344.31383677,0.00025521,2]
[343501434,1732691439487,-503.06140235,0.00025521,2]
[343501435,1732691439496,-366.36739818,0.00025548,2]
[343501436,1732691439505,-152.2217707,0.00025574,2]
[343501437,1732691439515,-302.72757545,0.0002575,2]
[343501438,1732691439524,-420.0,0.00025819,2]
[343501439,1732691439533,-302.72757545,0.00026,2]
[343501440,1732691439542,-152.2217707,0.00026247,2]
[343501441,1732691439552,-454.09136318,0.0002625,4]
[343501442,1732691439563,-151.0,0.00026388,7]
[343501443,1732691439573,-151.0,0.00026388,7]
[343501444,1732691439583,-779.312891,0.00026388,7]
[343501445,1732691439593,-779.312891,0.00026388,7]
[343501446,1732691439602,-156.57933,0.00026388,7]
[343501447,1732691439612,-151.56490331,0.00026419,2]
[343501448,1732691439621,-500.0,0.00026419,2]
[343501449,1732691439630,-210.62874765,0.00026419,2]
[343501450,1732691439640,-151.0,0.00026493,7]
[343501451,1732691439649,-384.223606,0.00026493,7]
[343501452,1732691439658,-384.223606,0.00026493,7]
[343501453,1732691439669,-238.579408,0.00026493,7]
[343501454,1732691439678,-238.579408,0.00026493,7]
[343501455,1732691439688,-151.0,0.00026493,7]
[343501456,1732691439701,-151.0,0.00026493,7]
[343501457,1732691439710,-151.0,0.00026493,7]
[343501458,1732691439719,-150.056,0.00026493,2]
[343501459,1732691439728,-150.0,0.00026493,2]
[343501460,1732691439738,-223.403,0.00026493,2]
[343501461,1732691439747,-150.144,0.00026493,2]
[343501462,1732691439756,-531.0,0.00026493,2]
[343501463,1732691439766,-2377.0,0.00026493,2]
[343501464,1732691439775,-1120.923,0.00026493,2]
[343501465,1732691439784,-526.96901731,0.000265,4]
[343501466,1732691439794,-2388.64352397,0.00026641,2]
[343501467,1732691439803,-500.0,0.00026693,2]
[343501468,1732691439813,-14394.50469647,0.000268,2]
[343501469,1732691439822,-14394.50469645,0.000268,2]
[343501470,1732691439832,-14394.50469645,0.000268,2]
[343501471,1732691439841,-14394.50469645,0.000268,2]
[343501472,1732691439850,-151.0,0.000268,7]
[343501473,1732691439860,-151.0,0.000268,7]
[343501474,1732691439869,-779.312891,0.000268,7]
[343501475,1732691439879,-779.312891,0.000268,7]
[343501476,1732691439889,-151.0,0.000268,7]
[343501477,1732691439898,-384.223606,0.000268,7]
[343501478,1732691439907,-384.223606,0.000268,7]
[343501479,1732691439929,-238.579408,0.000268,7]
[343501480,1732691439940,-238.579408,0.000268,7]
[343501481,1732691439950,-151.0,0.000268,7]
[343501482,1732691439961,-151.0,0.000268,7]
[343501483,1732691439971,-151.0,0.000268,7]
[343501484,1732691439981,-250.18746,0.000268,7]
[343501485,1732691439991,-250.18746,0.000268,7]
[343501486,1732691440000,-521.671692,0.000268,7]
[343501487,1732691440010,-521.671692,0.000268,7]
[343501488,1732691440020,-273.665014,0.000268,7]
[343501489,1732691440030,-273.665014,0.000268,7]
[343501491,1732691440040,-151.0,0.000268,7]
[343501492,1732691440050,-448.989205,0.000268,7]
[343501493,1732691440059,-448.989205,0.000268,7]
[343501494,1732691440069,-152.2217707,0.00026921,2]
[343501495,1732691440079,-500.0,0.00026967,2]
[343501496,1732691440089,-500.0,0.00027241,2]
[343501497,1732691440098,-453.33363131,0.00027297,2]
[343501498,1732691440108,-500.0,0.00027373,2]
[343501499,1732691440118,-500.0,0.00027373,2]
[343501500,1732691440128,-500.0,0.00027373,2]
[343501502,1732691440137,-500.58232513,0.00027373,2]
[343501503,1732691440147,-196504.6281683,0.0002739,2]
[343501504,1732691440163,-45764.92831802,0.0002739,2]
[343501505,1732691440173,-151.0,0.0002739,7]
[343501506,1732691440182,-151.0,0.0002739,7]
[343501507,1732691440192,-779.312891,0.0002739,7]
[343501508,1732691440201,-779.312891,0.0002739,7]
[343501509,1732691440211,-151.0,0.0002739,7]
[343501510,1732691440221,-626.748393,0.0002739,7]
[343501511,1732691440231,-626.748393,0.0002739,7]
[343501512,1732691440240,-151.0,0.0002739,7]
[343501513,1732691440251,-384.223606,0.0002739,7]
[343501514,1732691440261,-384.223606,0.0002739,7]
[343501515,1732691440271,-238.579408,0.0002739,7]
[343501516,1732691440281,-238.579408,0.0002739,7]
[343501517,1732691440291,-151.0,0.0002739,7]
[343501518,1732691440300,-151.0,0.0002739,7]
[343501519,1732691440310,-250.18746,0.0002739,7]
[343501520,1732691440320,-250.18746,0.0002739,7]
[343501521,1732691440330,-521.671692,0.0002739,7]
[343501522,1732691440339,-521.671692,0.0002739,7]
[343501523,1732691440350,-273.665014,0.0002739,7]
[343501524,1732691440360,-273.665014,0.0002739,7]
[343501525,1732691440369,-151.0,0.0002739,7]
[343501526,1732691440379,-448.989205,0.0002739,7]
[343501527,1732691440389,-448.989205,0.0002739,7]
[343501528,1732691440398,-151.0,0.00027397,7]
[343501529,1732691440408,-151.0,0.00027397,7]
[343501530,1732691440419,-151.0,0.00027397,7]
[343501531,1732691440429,-151.0,0.00027397,7]
[343501532,1732691440439,-151.0,0.00027397,7]
[343501533,1732691440448,-151.0,0.00027397,7]
[343501534,1732691440458,-151.0,0.00027397,7]
[343501535,1732691440468,-505.86297096,0.00027397,3]
[343501536,1732691440477,-779.312891,0.00027397,7]
[343501537,1732691440487,-779.312891,0.00027397,7]
[343501538,1732691440496,-779.312891,0.00027397,7]
[343501539,1732691440505,-779.312891,0.00027397,7]
[343501540,1732691440515,-779.312891,0.00027397,7]
[343501541,1732691440524,-779.312891,0.00027397,7]
[343501542,1732691440534,-779.312891,0.00027397,7]
[343501543,1732691440543,-779.312891,0.00027397,7]
[343501544,1732691440553,-779.312891,0.00027397,7]
[343501546,1732691440562,-779.312891,0.00027397,7]
[343501548,1732691440572,-779.312891,0.00027397,7]
[343501549,1732691440582,-779.312887,0.00027397,7]
[343501550,1732691440591,-500.0,0.00027397,3]
[343501551,1732691440687,-507.43414034,0.00027397,3]
[343501552,1732691440702,-500.0,0.00027397,3]
[343501553,1732691440712,-500.0,0.00027397,3]
[343501554,1732691440721,-500.0,0.00027397,3]
[343501555,1732691440731,-500.0,0.00027397,3]
[343501556,1732691440740,-500.0,0.00027397,3]
[343501557,1732691440749,-500.0,0.00027397,3]
[343501558,1732691440759,-500.0,0.00027397,3]
[343501559,1732691440769,-220.35872405,0.00027397,3]
[343501560,1732691440779,-212.441438,0.00027397,7]
[343501562,1732691440788,-500.0,0.00027397,3]
[343501564,1732691440798,-500.0,0.00027397,3]
[343501566,1732691440807,-500.0,0.00027397,3]
[343501568,1732691440817,-500.0,0.00027397,3]
[343501570,1732691440826,-500.0,0.00027397,3]
[343501572,1732691440835,-500.0,0.00027397,3]
[343501574,1732691440845,-500.0,0.00027397,3]
[343501576,1732691440855,-500.0,0.00027397,3]
[343501578,1732691440864,-500.0,0.00027397,3]
[343501580,1732691440873,-500.0,0.00027397,3]
[343501582,1732691440884,-500.0,0.00027397,3]
[343501584,1732691440893,-500.0,0.00027397,3]
[343501587,1732691440904,-500.0,0.00027397,3]
[343501588,1732691440915,-500.0,0.00027397,3]
[343501589,1732691440924,-500.0,0.00027397,3]
[343501590,1732691440933,-225.57523187,0.00027397,3]
[343501591,1732691440942,-500.84685791,0.00027397,3]
[343501592,1732691440952,-500.0,0.00027397,3]
[343501593,1732691440962,-500.0,0.00027397,3]
[343501594,1732691440971,-500.0,0.00027397,3]
[343501595,1732691440980,-500.0,0.00027397,3]
[343501596,1732691440989,-500.0,0.00027397,3]
[343501597,1732691440999,-500.0,0.00027397,3]
[343501598,1732691441008,-500.0,0.00027397,3]
[343501599,1732691441017,-412.05916029,0.00027397,3]
[343501600,1732691441027,-501.82492742,0.00027397,3]
[343501601,1732691441036,-500.0,0.00027397,3]
[343501602,1732691441046,-502.88928286,0.00027397,3]
[343501603,1732691441055,-500.0,0.00027397,3]
[343501604,1732691441065,-236.48701781,0.00027397,3]
[343501605,1732691441075,-282.62940208,0.00027397,3]
[343501606,1732691441085,-453.99028698,0.00027397,3]
[343501607,1732691441095,-500.0,0.00027397,3]
[343501608,1732691441105,-500.0,0.00027397,3]
[343501609,1732691441114,-500.0,0.00027397,3]
[343501610,1732691441124,-500.79208008,0.00027397,3]
[343501611,1732691441134,-500.0,0.00027397,3]
[343501612,1732691441143,-500.0,0.00027397,3]
[343501613,1732691441154,-500.0,0.00027397,3]
[343501614,1732691441164,-312.76462077,0.00027397,3]
[343501615,1732691441174,-500.0,0.00027397,3]
[343501616,1732691441183,-500.0,0.00027397,3]
[343501617,1732691441193,-500.0,0.00027397,3]
[343501618,1732691441203,-526.44047086,0.00027397,3]
[343501619,1732691441212,-188.0,0.00027397,30]
[343501620,1732691441223,-188.0,0.00027397,30]
[343501621,1732691441232,-500.0,0.00027397,3]
[343501622,1732691441242,-188.0,0.00027397,30]
[343501623,1732691441252,-500.0,0.00027397,3]
[343501624,1732691441261,-188.0,0.00027397,30]
[343501625,1732691441271,-188.0,0.00027397,30]
[343501626,1732691441280,-506.65555527,0.00027397,3]
[343501627,1732691441290,-188.0,0.00027397,30]
[343501628,1732691441300,-275.48966603,0.00027397,30]
[343501629,1732691441309,-500.0,0.00027397,3]
[343501630,1732691441319,-500.0,0.00027397,3]
[343501631,1732691441328,-500.0,0.00027397,3]
[343501632,1732691441337,-500.0,0.00027397,3]
[343501633,1732691441347,-500.0,0.00027397,3]
[343501634,1732691441356,-500.0,0.00027397,3]
[343501635,1732691441366,-500.0,0.00027397,3]
[343501636,1732691441376,-523.0174914,0.00027397,3]
[343501637,1732691441385,-500.0,0.00027397,3]
[343501638,1732691441395,-500.0,0.00027397,3]
[343501639,1732691441405,-500.0,0.00027397,3]
[343501640,1732691441416,-502.52988152,0.00027397,3]
[343501641,1732691441426,-500.0,0.00027397,3]
[343501642,1732691441436,-500.40127153,0.00027397,3]
[343501643,1732691441446,-500.0,0.00027397,3]
[343501644,1732691441456,-368.78586077,0.00027397,3]
[343501645,1732691441466,-500.0,0.00027397,3]
[343501646,1732691441476,-414.54048949,0.00027397,3]
[343501647,1732691441485,-500.0,0.00027397,3]
[343501648,1732691441495,-500.0,0.00027397,3]
[343501649,1732691441504,-500.0,0.00027397,3]
[343501650,1732691441514,-475.00071061,0.00027397,3]
[343501651,1732691441525,-626.748393,0.00027397,7]
[343501652,1732691441535,-626.748393,0.00027397,7]
[343501653,1732691441544,-626.748393,0.00027397,7]
[343501654,1732691441553,-500.0,0.00027397,3]
[343501655,1732691441562,-501.76117636,0.00027397,3]
[343501656,1732691441571,-626.748393,0.00027397,7]
[343501657,1732691441580,-626.748393,0.00027397,7]
[343501658,1732691441591,-626.748393,0.00027397,7]
[343501659,1732691441600,-500.0,0.00027397,3]
[343501660,1732691441609,-626.748393,0.00027397,7]
[343501661,1732691441618,-506.85280138,0.00027397,3]
[343501662,1732691441627,-626.748393,0.00027397,7]
[343501663,1732691441636,-626.748393,0.00027397,7]
[343501664,1732691441645,-626.748393,0.00027397,7]
[343501665,1732691441654,-626.748393,0.00027397,7]
[343501666,1732691441663,-626.748393,0.00027397,7]
[343501667,1732691441675,-500.0,0.00027397,3]
[343501668,1732691441689,-626.748393,0.00027397,7]
[343501669,1732691441699,-500.0,0.00027397,3]
[343501670,1732691441708,-626.748393,0.00027397,7]
[343501671,1732691441717,-626.748393,0.00027397,7]
[343501672,1732691441726,-500.0,0.00027397,3]
[343501673,1732691441738,-500.0,0.00027397,3]
[343501674,1732691441747,-626.748393,0.00027397,7]
[343501675,1732691441758,-500.0,0.00027397,3]
[343501676,1732691441773,-626.748393,0.00027397,7]
[343501677,1732691441782,-500.0,0.00027397,3]
[343501678,1732691441792,-500.0,0.00027397,3]
[343501679,1732691441802,-626.748396,0.00027397,7]
[343501680,1732691441812,-500.0,0.00027397,3]
[343501681,1732691441822,-500.0,0.00027397,3]
[343501682,1732691441831,-500.0,0.00027397,3]
[343501683,1732691441841,-502.94412851,0.00027397,3]
[343501684,1732691441851,-500.0,0.00027397,3]
[343501685,1732691441861,-500.0,0.00027397,3]
[343501686,1732691441871,-500.0,0.00027397,3]
[343501687,1732691441880,-500.0,0.00027397,3]
[343501688,1732691441890,-500.0,0.00027397,3]
[343501689,1732691441899,-500.0,0.00027397,3]
[343501690,1732691441909,-500.0,0.00027397,3]
[343501691,1732691441923,-501.7161775,0.00027397,3]
[343501692,1732691441934,-500.0,0.00027397,3]
[343501693,1732691441944,-244.2943767,0.00027397,3]
[343501694,1732691441953,-500.0,0.00027397,3]
[343501695,1732691441963,-500.0,0.00027397,3]
[343501696,1732691441973,-504.70325767,0.00027397,3]
[343501697,1732691441983,-150.0,0.00027397,3]
[343501698,1732691441993,-228.33349471,0.00027397,3]
[343501699,1732691442003,-500.0,0.00027397,3]
[343501700,1732691442012,-427.90533319,0.00027397,3]
[343501701,1732691442022,-500.0,0.00027397,3]
[343501702,1732691442031,-500.0,0.00027397,3]
[343501703,1732691442041,-503.24797481,0.00027397,3]
[343501704,1732691442050,-307.0590448,0.00027397,3]
[343501705,1732691442059,-500.0,0.00027397,3]
[343501706,1732691442069,-500.0,0.00027397,3]
[343501707,1732691442079,-500.0,0.00027397,3]
[343501708,1732691442090,-500.0,0.00027397,3]
[343501709,1732691442101,-319.89200571,0.00027397,3]
[343501710,1732691442111,-500.0,0.00027397,3]
[343501711,1732691442120,-500.0,0.00027397,3]
[343501712,1732691442130,-500.0,0.00027397,3]
[343501713,1732691442140,-500.0,0.00027397,3]
[343501714,1732691442149,-245.95952417,0.00027397,3]
[343501715,1732691442160,-502.02768346,0.00027397,3]
[343501716,1732691442171,-500.0,0.00027397,3]
[343501717,1732691442182,-500.0,0.00027397,3]
[343501718,1732691442196,-212.89352,0.00027397,7]
[343501719,1732691442205,-501.75345133,0.00027397,3]
[343501720,1732691442215,-500.0,0.00027397,3]
[343501721,1732691442224,-500.0,0.00027397,2]
[343501722,1732691442234,-353.43619693,0.00027397,2]
[343501723,1732691442431,-149.65240913,0.00027397,2]
[343501724,1732691442441,-500.0,0.00027397,3]
[343501725,1732691442451,-347.55634681,0.00027397,3]
[343501726,1732691442464,-160.4734824,0.00027397,3]
[343501727,1732691442474,-339.30218576,0.00027397,3]
[343501728,1732691442491,-161.67927882,0.00027397,3]
[343501729,1732691442501,-500.0,0.00027397,3]
[343501730,1732691442512,-500.0,0.00027397,3]
[343501731,1732691442521,-500.0,0.00027397,3]
[343501732,1732691442531,-503.98956678,0.00027397,3]
[343501733,1732691442540,-574.82852474,0.00027397,3]
[343501734,1732691442550,-500.0,0.00027397,3]
[343501735,1732691442560,-509.93866119,0.00027397,3]
[343501736,1732691442570,-500.0,0.00027397,3]
[343501737,1732691442579,-500.0,0.00027397,3]
[343501738,1732691442589,-500.0,0.00027397,3]
[343501739,1732691442598,-522.5678566,0.00027397,3]
[343501740,1732691442607,-500.0,0.00027397,3]
[343501741,1732691442616,-500.0,0.00027397,3]
[343501742,1732691442626,-500.0,0.00027397,3]
[343501743,1732691442635,-500.0,0.00027397,3]
[343501744,1732691442645,-422.61995315,0.00027397,3]
[343501745,1732691442654,-500.0,0.00027397,3]
[343501746,1732691442663,-500.81153657,0.00027397,3]
[343501747,1732691442676,-500.0,0.00027397,3]
[343501748,1732691442685,-191.05824195,0.00027397,3]
[343501749,1732691442701,-308.94175805,0.00027397,3]
[343501750,1732691442711,-500.0,0.00027397,3]
[343501751,1732691442720,-501.08140871,0.00027397,3]
[343501752,1732691442731,-318.61424429,0.00027397,3]
[343501753,1732691442740,-221.55520009,0.00027397,3]
[343501754,1732691442753,-278.44479991,0.00027397,3]
[343501755,1732691442763,-501.94869118,0.00027397,3]
[343501756,1732691442773,-47.60650889,0.00027397,3]
[343501757,1732691442880,-452.39349111,0.00027397,3]
[343501758,1732691442890,-502.55808684,0.00027397,3]
[343501759,1732691442900,-501.73887344,0.00027397,3]
[343501760,1732691442909,-500.0,0.00027397,3]
[343501761,1732691442923,-168.39660239,0.00027397,3]
[343501762,1732691442935,-331.60339761,0.00027397,3]
[343501763,1732691442945,-500.0,0.00027397,3]
[343501764,1732691442954,-500.0,0.00027397,3]
[343501765,1732691442963,-500.0,0.00027397,3]
[343501766,1732691442973,-138.30954861,0.00027397,3]
[343501767,1732691442985,-361.69045139,0.00027397,3]
[343501768,1732691442994,-500.0,0.00027397,3]
[343501769,1732691443004,-509.49339632,0.00027397,3]
[343501770,1732691443014,-500.0,0.00027397,3]
[343501771,1732691443024,-500.0,0.00027397,3]
[343501772,1732691443033,-500.0,0.00027397,3]
[343501773,1732691443042,-500.0,0.00027397,3]
[343501774,1732691443052,-172.79335319,0.00027397,3]
[343501775,1732691443061,-500.0,0.00027397,3]
[343501776,1732691443071,-500.0,0.00027397,3]
[343501777,1732691443080,-502.18818896,0.00027397,3]
[343501778,1732691443092,-571.52685122,0.00027397,3]
[343501779,1732691443102,-500.0,0.00027397,3]
[343501780,1732691443115,-500.0,0.00027397,3]
[343501781,1732691443125,-502.57207776,0.00027397,3]
[343501782,1732691443135,-500.0,0.00027397,3]
[343501783,1732691443144,-500.0,0.00027397,3]
[343501784,1732691443153,-501.73293962,0.00027397,3]
[343501785,1732691443162,-500.0,0.00027397,3]
[343501786,1732691443175,-506.60449159,0.00027397,3]
[343501787,1732691443184,-500.0,0.00027397,3]
[343501788,1732691443194,-500.0,0.00027397,3]
[343501789,1732691443204,-502.04561176,0.00027397,3]
[343501790,1732691443214,-501.16438296,0.00027397,3]
[343501791,1732691443223,-500.0,0.00027397,3]
[343501792,1732691443233,-502.24858355,0.00027397,3]
[343501793,1732691443243,-500.0,0.00027397,3]
[343501794,1732691443252,-500.0,0.00027397,3]
[343501795,1732691443262,-500.0,0.00027397,3]
[343501796,1732691443271,-317.11967172,0.00027397,3]
[343501797,1732691443287,-188.12144716,0.00027397,3]
[343501798,1732691443297,-198.67236584,0.00027397,3]
[343501799,1732691443308,-301.32763416,0.00027397,3]
[343501800,1732691443318,-166.17565047,0.00027397,3]
[343501801,1732691443327,-500.94183075,0.00027397,3]
[343501802,1732691443336,-500.7864806,0.00027397,3]
[343501803,1732691443346,-500.0,0.00027397,3]